[Event "*** Titled Tuesday Blitz"]
[Site "Chess.com"]
[Date "2020.11.24"]
[Round "6"]
[White "Bastiandash"]
[Black "Chess_Boxer123"]
[Result "1/2-1/2"]
[WhiteElo "2421"]
[BlackElo "2534"]
[TimeControl "180+1"]
[EndTime "11:26:30 PST"]
[Termination "Game drawn by repetition"]

1. d4 {[%clk 0:03:00.9]} 1... d5 {[%clk 0:02:59.7]} 2. Nf3 {[%clk 0:03:00.2]}
2... Nf6 {[%clk 0:02:59.3]} 3. c3 {[%clk 0:03:00.2]} 3... Bf5 {[%clk 0:02:57]}
4. Bg5 {[%clk 0:02:57.1]} 4... e6 {[%clk 0:02:56.7]} 5. e3 {[%clk 0:02:56.1]}
5... Nbd7 {[%clk 0:02:53.7]} 6. Bd3 {[%clk 0:02:53.7]} 6... Bg6 {[%clk
0:02:52.2]} 7. Qc2 {[%clk 0:02:47.6]} 7... c6 {[%clk 0:02:51.7]} 8. Nbd2 {[%clk
0:02:47.3]} 8... Bd6 {[%clk 0:02:48.7]} 9. e4 {[%clk 0:02:47.1]} 9... dxe4
{[%clk 0:02:48.6]} 10. Nxe4 {[%clk 0:02:48]} 10... Be7 {[%clk 0:02:48.8]} 11. h4
{[%clk 0:02:44.3]} 11... Bxe4 {[%clk 0:02:44.9]} 12. Bxe4 {[%clk 0:02:43.5]}
12... h6 {[%clk 0:02:45.4]} 13. Bxf6 {[%clk 0:02:33.7]} 13... Bxf6 {[%clk
0:02:45.2]} 14. Bd3 {[%clk 0:02:34.6]} 14... O-O {[%clk 0:02:39.5]} 15. g4
{[%clk 0:02:33.6]} 15... Be7 {[%clk 0:01:50.6]} 16. g5 {[%clk 0:02:14.5]} 16...
h5 {[%clk 0:01:50.1]} 17. g6 {[%clk 0:02:14.5]} 17... fxg6 {[%clk 0:01:37.2]}
18. Rh3 {[%clk 0:02:06.2]} 18... Rxf3 {[%clk 0:00:56.3]} 19. Rxf3 {[%clk
0:02:04.5]} 19... Nf8 {[%clk 0:00:53.6]} 20. Bxg6 {[%clk 0:02:01.9]} 20... Qd5
{[%clk 0:00:51.9]} 21. Be4 {[%clk 0:01:48.1]} 21... Qa5 {[%clk 0:00:49.8]} 22.
O-O-O {[%clk 0:01:27.9]} 22... Qxa2 {[%clk 0:00:47.2]} 23. Rg1 {[%clk
0:01:25.8]} 23... Qa1+ {[%clk 0:00:40.4]} 24. Qb1 {[%clk 0:01:25.7]} 24... Qxb1+
{[%clk 0:00:40.9]} 25. Kxb1 {[%clk 0:01:26.6]} 25... Bxh4 {[%clk 0:00:40.8]} 26.
Rh3 {[%clk 0:01:22.1]} 26... Bf6 {[%clk 0:00:31.4]} 27. Rxh5 {[%clk 0:01:21.7]}
27... Rd8 {[%clk 0:00:23.8]} 28. Rgh1 {[%clk 0:01:20.4]} 28... Kf7 {[%clk
0:00:23.7]} 29. Rh8 {[%clk 0:01:17.6]} 29... Ke7 {[%clk 0:00:21.6]} 30. Rg8
{[%clk 0:01:08.5]} 30... Nd7 {[%clk 0:00:19.1]} 31. Rxd8 {[%clk 0:01:07.9]}
31... Kxd8 {[%clk 0:00:20]} 32. Rh8+ {[%clk 0:01:08.2]} 32... Kc7 {[%clk
0:00:20.5]} 33. Kc2 {[%clk 0:01:08.8]} 33... a6 {[%clk 0:00:20.9]} 34. Kd3
{[%clk 0:01:08.8]} 34... e5 {[%clk 0:00:21.2]} 35. f3 {[%clk 0:01:04.9]} 35...
exd4 {[%clk 0:00:20.8]} 36. cxd4 {[%clk 0:01:05.8]} 36... c5 {[%clk 0:00:20.8]}
37. Bf5 {[%clk 0:01:02.5]} 37... Bxd4 {[%clk 0:00:18.1]} 38. Bxd7 {[%clk
0:00:54.3]} 38... Kxd7 {[%clk 0:00:17.6]} 39. b3 {[%clk 0:00:54.7]} 39... Bf6
{[%clk 0:00:15.8]} 40. Ke4 {[%clk 0:00:52.2]} 40... Kc6 {[%clk 0:00:15.1]} 41.
Rb8 {[%clk 0:00:51.5]} 41... b5 {[%clk 0:00:13.6]} 42. Ra8 {[%clk 0:00:51.4]}
42... Kb6 {[%clk 0:00:13.3]} 43. Rb8+ {[%clk 0:00:50.9]} 43... Ka5 {[%clk
0:00:13.8]} 44. Kd3 {[%clk 0:00:49.4]} 44... Kb4 {[%clk 0:00:13.6]} 45. Kc2
{[%clk 0:00:49.3]} 45... a5 {[%clk 0:00:14]} 46. Ra8 {[%clk 0:00:43.1]} 46...
Bc3 {[%clk 0:00:09.7]} 47. f4 {[%clk 0:00:36.1]} 47... Bd4 {[%clk 0:00:09.9]}
48. f5 {[%clk 0:00:29.5]} 48... Be5 {[%clk 0:00:10]} 49. Ra7 {[%clk 0:00:28.8]}
49... Bf6 {[%clk 0:00:09.9]} 50. Ra8 {[%clk 0:00:26.8]} 50... Bd4 {[%clk
0:00:08.8]} 51. Ra6 {[%clk 0:00:24.6]} 51... Ba1 {[%clk 0:00:08.6]} 52. Ra7
{[%clk 0:00:24.3]} 52... Be5 {[%clk 0:00:08.3]} 53. Ra8 {[%clk 0:00:23.8]} 53...
Bf6 {[%clk 0:00:04.8]} 54. Ra7 {[%clk 0:00:23.4]} 54... c4 {[%clk 0:00:04.9]}
55. bxc4 {[%clk 0:00:22.9]} 55... bxc4 {[%clk 0:00:05.8]} 56. Rb7+ {[%clk
0:00:22.4]} 56... Kc5 {[%clk 0:00:05.5]} 57. Ra7 {[%clk 0:00:21.9]} 57... Kb5
{[%clk 0:00:05.9]} 58. Rb7+ {[%clk 0:00:22.1]} 58... Kc6 {[%clk 0:00:06]} 59.
Ra7 {[%clk 0:00:21.9]} 59... Kb6 {[%clk 0:00:06.4]} 60. Ra8 {[%clk 0:00:22]}
60... c3 {[%clk 0:00:05]} 61. Kb3 {[%clk 0:00:21]} 61... Kb5 {[%clk 0:00:05.4]}
62. Rb8+ {[%clk 0:00:20.7]} 62... Ka6 {[%clk 0:00:05.9]} 63. Rc8 {[%clk
0:00:20.9]} 63... Kb7 {[%clk 0:00:05.6]} 64. Rc5 {[%clk 0:00:17.5]} 64... Kb6
{[%clk 0:00:05.9]} 65. Rc8 {[%clk 0:00:17.6]} 65... Be5 {[%clk 0:00:04.5]} 66.
Ka4 {[%clk 0:00:15.1]} 66... Bc7 {[%clk 0:00:02.2]} 67. Kb3 {[%clk 0:00:14.7]}
67... Be5 {[%clk 0:00:02.5]} 68. Re8 {[%clk 0:00:14.3]} 68... Bf6 {[%clk
0:00:02.7]} 69. Re6+ {[%clk 0:00:15.2]} 69... Kb5 {[%clk 0:00:03.2]} 70. Re8
{[%clk 0:00:15.2]} 70... a4+ {[%clk 0:00:03.6]} 71. Kc2 {[%clk 0:00:15.7]} 71...
Kb4 {[%clk 0:00:03.5]} 72. Rb8+ {[%clk 0:00:15.7]} 72... Kc4 {[%clk 0:00:04]}
73. Rc8+ {[%clk 0:00:15.1]} 73... Kb4 {[%clk 0:00:04.5]} 74. Rb8+ {[%clk
0:00:16]} 74... Ka5 {[%clk 0:00:05.1]} 75. Ra8+ {[%clk 0:00:16.9]} 75... Kb5
{[%clk 0:00:05.6]} 76. Kd3 {[%clk 0:00:16.8]} 76... Kb4 {[%clk 0:00:03.4]} 77.
Kc2 {[%clk 0:00:15.3]} 77... Kb5 {[%clk 0:00:02.9]} 78. Rb8+ {[%clk 0:00:15.4]}
78... Kc6 {[%clk 0:00:02.9]} 79. Rb4 {[%clk 0:00:15.1]} 79... a3 {[%clk
0:00:02.6]} 80. Ra4 {[%clk 0:00:15]} 80... Kd5 {[%clk 0:00:03.1]} 81. Rxa3
{[%clk 0:00:14.8]} 81... Ke4 {[%clk 0:00:03.3]} 82. Ra5 {[%clk 0:00:15.1]} 82...
Kf4 {[%clk 0:00:03.1]} 83. Kd3 {[%clk 0:00:14.6]} 83... Kg4 {[%clk 0:00:03.5]}
84. Ke4 {[%clk 0:00:12.3]} 84... Kg5 {[%clk 0:00:03.7]} 85. Rc5 {[%clk
0:00:12.3]} 85... Kg4 {[%clk 0:00:04]} 86. Rc8 {[%clk 0:00:11.5]} 86... Kg5
{[%clk 0:00:04.1]} 87. Rc4 {[%clk 0:00:11.9]} 87... Kg4 {[%clk 0:00:04.4]} 88.
Rc5 {[%clk 0:00:11.7]} 88... Kg3 {[%clk 0:00:04.5]} 89. Kd5 {[%clk 0:00:10.7]}
89... Kf2 {[%clk 0:00:04.9]} 90. Ke6 {[%clk 0:00:09.8]} 90... Ke2 {[%clk
0:00:05]} 91. Rc6 {[%clk 0:00:03]} 91... Kd3 {[%clk 0:00:05.2]} 92. Kf7 {[%clk
0:00:03.5]} 92... c2 {[%clk 0:00:04.8]} 93. Kg6 {[%clk 0:00:02.1]} 93... Kd2
{[%clk 0:00:04.4]} 94. Rd6+ {[%clk 0:00:02.4]} 94... Kc1 {[%clk 0:00:04.9]} 95.
Rc6 {[%clk 0:00:02.1]} 95... Kb1 {[%clk 0:00:05]} 96. Rb6+ {[%clk 0:00:02.1]}
96... Bb2 {[%clk 0:00:05.6]} 97. Rxb2+ {[%clk 0:00:01.3]} 97... Kxb2 {[%clk
0:00:06.5]} 98. Kxg7 {[%clk 0:00:02.2]} 98... c1=Q {[%clk 0:00:06.5]} 99. f6
{[%clk 0:00:03.1]} 99... Qg5+ {[%clk 0:00:06.9]} 100. Kf7 {[%clk 0:00:03.7]}
100... Kc3 {[%clk 0:00:07.3]} 101. Ke6 {[%clk 0:00:02.7]} 101... Qg6 {[%clk
0:00:07.5]} 102. Ke7 {[%clk 0:00:03]} 102... Qe4+ {[%clk 0:00:04.5]} 103. Kd6
{[%clk 0:00:02.9]} 103... Kd4 {[%clk 0:00:03.5]} 104. f7 {[%clk 0:00:02.9]}
104... Qe3 {[%clk 0:00:03.7]} 105. Kd7 {[%clk 0:00:00.5]} 105... Qa3 {[%clk
0:00:04]} 106. Ke8 {[%clk 0:00:01.4]} 106... Qa8+ {[%clk 0:00:04.3]} 107. Ke7
{[%clk 0:00:02.2]} 107... Qb7+ {[%clk 0:00:04.4]} 108. Kf6 {[%clk 0:00:02.5]}
108... Qc6+ {[%clk 0:00:03.5]} 109. Kg7 {[%clk 0:00:02.9]} 109... Qd7 {[%clk
0:00:03.9]} 110. Kg8 {[%clk 0:00:02.7]} 110... Qe6 {[%clk 0:00:04.1]} 111. Kg7
{[%clk 0:00:03]} 111... Qg4+ {[%clk 0:00:04.4]} 112. Kh8 {[%clk 0:00:03]} 112...
Qh5+ {[%clk 0:00:04.7]} 113. Kg7 {[%clk 0:00:03.8]} 113... Qg5+ {[%clk
0:00:04.9]} 114. Kh8 {[%clk 0:00:04.2]} 114... Qh6+ {[%clk 0:00:05.3]} 115. Kg8
{[%clk 0:00:04.6]} 115... Qg6+ {[%clk 0:00:05.8]} 116. Kh8 {[%clk 0:00:05.1]}
116... Qf6+ {[%clk 0:00:05.8]} 117. Kg8 {[%clk 0:00:05.4]} 117... Qe6 {[%clk
0:00:06.2]} 118. Kg7 {[%clk 0:00:05.5]} 118... Qe7 {[%clk 0:00:06.2]} 119. Kg8
{[%clk 0:00:05.8]} 119... Qg5+ {[%clk 0:00:06.4]} 120. Kh8 {[%clk 0:00:06]}
120... Qd8+ {[%clk 0:00:06.7]} 121. Kg7 {[%clk 0:00:05.9]} 121... Qe7 {[%clk
0:00:07.1]} 122. Kg8 {[%clk 0:00:06]} 122... Qe6 {[%clk 0:00:06.9]} 1/2-1/2

[Event "*** Titled Tuesday Blitz"]
[Site "Chess.com"]
[Date "2020.11.24"]
[Round "7"]
[White "TST2014"]
[Black "barriochess"]
[Result "1-0"]
[WhiteElo "2509"]
[BlackElo "2366"]
[TimeControl "180+1"]
[EndTime "11:28:52 PST"]
[Termination "TST2014 won by resignation"]

1. d4 {[%clk 0:02:57.5]} 1... d5 {[%clk 0:02:58.3]} 2. c4 {[%clk 0:02:56.8]}
2... e6 {[%clk 0:02:57.5]} 3. Nf3 {[%clk 0:02:57.1]} 3... c5 {[%clk 0:02:56.6]}
4. cxd5 {[%clk 0:02:56.8]} 4... exd5 {[%clk 0:02:57.5]} 5. g3 {[%clk 0:02:55.6]}
5... Nc6 {[%clk 0:02:57.6]} 6. Bg2 {[%clk 0:02:55.8]} 6... Nf6 {[%clk
0:02:57.9]} 7. O-O {[%clk 0:02:56.3]} 7... Be7 {[%clk 0:02:58.3]} 8. Be3 {[%clk
0:02:51.1]} 8... c4 {[%clk 0:02:52.9]} 9. b3 {[%clk 0:02:49.8]} 9... cxb3 {[%clk
0:02:52.6]} 10. Qxb3 {[%clk 0:02:46.9]} 10... O-O {[%clk 0:02:53.5]} 11. Nc3
{[%clk 0:02:44.6]} 11... Na5 {[%clk 0:02:50.5]} 12. Qb1 {[%clk 0:02:33.9]} 12...
Bf5 {[%clk 0:02:49.1]} 13. Qxf5 {[%clk 0:02:32.8]} 1-0

[Event "*** Titled Tuesday Blitz"]
[Site "Chess.com"]
[Date "2020.11.24"]
[Round "7"]
[White "sunofadawn"]
[Black "AbdAlAgathos"]
[Result "0-1"]
[WhiteElo "2478"]
[BlackElo "2385"]
[TimeControl "180+1"]
[EndTime "11:29:28 PST"]
[Termination "AbdAlAgathos won by resignation"]

1. e4 {[%clk 0:03:00.9]} 1... e6 {[%clk 0:02:56.3]} 2. d4 {[%clk 0:02:59.4]}
2... d5 {[%clk 0:02:56.3]} 3. Nc3 {[%clk 0:03:00.1]} 3... Bb4 {[%clk 0:02:55.7]}
4. e5 {[%clk 0:03:00.6]} 4... c5 {[%clk 0:02:55.3]} 5. a3 {[%clk 0:03:01.1]}
5... Bxc3+ {[%clk 0:02:55.4]} 6. bxc3 {[%clk 0:03:02]} 6... Ne7 {[%clk
0:02:55.3]} 7. h4 {[%clk 0:03:02.1]} 7... h6 {[%clk 0:02:47]} 8. Qg4 {[%clk
0:02:59.7]} 8... Kf8 {[%clk 0:02:36.2]} 9. Nf3 {[%clk 0:02:51.7]} 9... b6 {[%clk
0:02:36]} 10. Rh3 {[%clk 0:02:50.2]} 10... Ba6 {[%clk 0:02:34.3]} 11. Rg3 {[%clk
0:02:50.3]} 11... Nf5 {[%clk 0:02:33.7]} 12. Rh3 {[%clk 0:02:43.5]} 12... Qd7
{[%clk 0:02:24.6]} 13. h5 {[%clk 0:02:39.1]} 13... Qa4 {[%clk 0:02:20.9]} 14.
Ra2 {[%clk 0:02:33.1]} 14... Bxf1 {[%clk 0:02:19.3]} 15. Kxf1 {[%clk 0:02:33.2]}
15... Qc4+ {[%clk 0:02:18.9]} 0-1

[Event "*** Titled Tuesday Blitz"]
[Site "Chess.com"]
[Date "2020.11.24"]
[Round "7"]
[White "annacramling"]
[Black "dosto07"]
[Result "0-1"]
[WhiteElo "2072"]
[BlackElo "2320"]
[TimeControl "180+1"]
[EndTime "11:30:03 PST"]
[Termination "dosto07 won by checkmate"]

1. d4 {[%clk 0:03:00.9]} 1... d5 {[%clk 0:02:54.5]} 2. c4 {[%clk 0:03:00]} 2...
dxc4 {[%clk 0:02:55.4]} 3. Nf3 {[%clk 0:02:58.5]} 3... Nf6 {[%clk 0:02:54.7]} 4.
e3 {[%clk 0:02:58.6]} 4... e6 {[%clk 0:02:54.2]} 5. Bxc4 {[%clk 0:02:58.7]} 5...
c5 {[%clk 0:02:54.7]} 6. O-O {[%clk 0:02:55]} 6... a6 {[%clk 0:02:54.1]} 7. Qe2
{[%clk 0:02:52.9]} 7... Nc6 {[%clk 0:02:51.4]} 8. Rd1 {[%clk 0:02:44.4]} 8...
Qc7 {[%clk 0:02:49.4]} 9. a3 {[%clk 0:02:12.9]} 9... b5 {[%clk 0:02:43.7]} 10.
Bd3 {[%clk 0:02:10.4]} 10... Bb7 {[%clk 0:02:38]} 11. Nc3 {[%clk 0:01:53.9]}
11... Be7 {[%clk 0:02:35.7]} 12. dxc5 {[%clk 0:01:52.6]} 12... Bxc5 {[%clk
0:02:34.6]} 13. e4 {[%clk 0:01:53.2]} 13... Ng4 {[%clk 0:02:30.7]} 14. Rf1
{[%clk 0:01:46.6]} 14... Nd4 {[%clk 0:02:28.6]} 15. Nxd4 {[%clk 0:01:46]} 15...
Qxh2# {[%clk 0:02:26.6]} 0-1

[Event "*** Titled Tuesday Blitz"]
[Site "Chess.com"]
[Date "2020.11.24"]
[Round "7"]
[White "champ2005"]
[Black "tdf98pantani"]
[Result "1-0"]
[WhiteElo "3008"]
[BlackElo "2718"]
[TimeControl "180+1"]
[EndTime "11:30:06 PST"]
[Termination "champ2005 won by resignation"]

1. c4 {[%clk 0:03:00.9]} 1... e5 {[%clk 0:02:54.2]} 2. Nc3 {[%clk 0:03:01.3]}
2... Nc6 {[%clk 0:02:51.4]} 3. g3 {[%clk 0:03:01]} 3... Bc5 {[%clk 0:02:51.4]}
4. Bg2 {[%clk 0:03:01.9]} 4... h5 {[%clk 0:02:49.9]} 5. Nf3 {[%clk 0:02:59.8]}
5... d6 {[%clk 0:02:47.5]} 6. e3 {[%clk 0:02:57.7]} 6... a6 {[%clk 0:02:35.6]}
7. d4 {[%clk 0:02:56.8]} 7... Ba7 {[%clk 0:02:17.4]} 8. dxe5 {[%clk 0:02:56.6]}
8... Nxe5 {[%clk 0:02:13.1]} 9. Nxe5 {[%clk 0:02:57]} 9... dxe5 {[%clk
0:02:13.6]} 10. Qxd8+ {[%clk 0:02:57.9]} 10... Kxd8 {[%clk 0:02:14.2]} 11. b3
{[%clk 0:02:58.8]} 11... Bc5 {[%clk 0:02:10.5]} 12. Bb2 {[%clk 0:02:58.8]} 12...
c6 {[%clk 0:02:06.9]} 13. O-O-O+ {[%clk 0:02:56]} 13... Kc7 {[%clk 0:02:06.3]}
14. Ne4 {[%clk 0:02:52]} 14... Kb6 {[%clk 0:01:39.8]} 15. Nxc5 {[%clk
0:02:46.1]} 15... Kxc5 {[%clk 0:01:39.8]} 16. Bxe5 {[%clk 0:02:47]} 16... f6
{[%clk 0:01:40.1]} 17. Bd4+ {[%clk 0:02:46.8]} 17... Kb4 {[%clk 0:01:40.2]} 18.
Bb6 {[%clk 0:02:44.5]} 18... Bf5 {[%clk 0:01:37.4]} 19. Kb2 {[%clk 0:02:44.2]}
1-0

[Event "*** Titled Tuesday Blitz"]
[Site "Chess.com"]
[Date "2020.11.24"]
[Round "7"]
[White "AIROPITO7"]
[Black "BlackGod93"]
[Result "0-1"]
[WhiteElo "2548"]
[BlackElo "2253"]
[TimeControl "180+1"]
[EndTime "11:30:26 PST"]
[Termination "BlackGod93 won by resignation"]

1. e4 {[%clk 0:03:00.9]} 1... e5 {[%clk 0:02:59.6]} 2. Nf3 {[%clk 0:02:59.9]}
2... Nc6 {[%clk 0:03:00.1]} 3. Nc3 {[%clk 0:02:58.9]} 3... Nf6 {[%clk
0:03:00.5]} 4. h3 {[%clk 0:02:59]} 4... Bc5 {[%clk 0:03:00.6]} 5. Nxe5 {[%clk
0:02:58]} 5... Bxf2+ {[%clk 0:02:59.3]} 6. Kxf2 {[%clk 0:02:57.7]} 6... Nxe5
{[%clk 0:03:00.2]} 7. d4 {[%clk 0:02:57.7]} 7... Ng6 {[%clk 0:02:59.6]} 8. e5
{[%clk 0:02:56.8]} 8... Ng8 {[%clk 0:02:58.2]} 9. Bc4 {[%clk 0:02:56.3]} 9... d6
{[%clk 0:02:58.5]} 10. Qf3 {[%clk 0:02:51.6]} 10... Be6 {[%clk 0:02:46.5]} 11.
Bxe6 {[%clk 0:02:44.7]} 11... fxe6 {[%clk 0:02:47.4]} 12. Qxb7 {[%clk
0:02:21.2]} 12... N8e7 {[%clk 0:02:44.8]} 13. exd6 {[%clk 0:02:16.8]} 13... O-O+
{[%clk 0:02:44.1]} 14. Kg1 {[%clk 0:02:14]} 14... Qxd6 {[%clk 0:02:43.9]} 15.
Be3 {[%clk 0:02:13.3]} 15... Nf5 {[%clk 0:02:34]} 16. Qe4 {[%clk 0:02:09.1]}
16... Rab8 {[%clk 0:02:23.8]} 17. b3 {[%clk 0:02:00]} 17... Qg3 {[%clk
0:02:22.8]} 18. Nd1 {[%clk 0:01:53.3]} 18... Qe1+ {[%clk 0:02:16.3]} 19. Kh2
{[%clk 0:01:53.3]} 19... Qxh1+ {[%clk 0:02:16.7]} 20. Kxh1 {[%clk 0:01:53.7]}
20... Ng3+ {[%clk 0:02:17.4]} 21. Kh2 {[%clk 0:01:53.8]} 21... Nxe4 {[%clk
0:02:18.3]} 0-1

[Event "*** Titled Tuesday Blitz"]
[Site "Chess.com"]
[Date "2020.11.24"]
[Round "7"]
[White "Shield12"]
[Black "Zkid"]
[Result "1-0"]
[WhiteElo "2919"]
[BlackElo "2794"]
[TimeControl "180+1"]
[EndTime "11:30:31 PST"]
[Termination "Shield12 won by resignation"]

1. e4 {[%clk 0:03:00.9]} 1... e6 {[%clk 0:02:48]} 2. d4 {[%clk 0:03:00.8]} 2...
d5 {[%clk 0:02:48.9]} 3. Nd2 {[%clk 0:03:01.5]} 3... c5 {[%clk 0:02:47.6]} 4.
Ngf3 {[%clk 0:03:01.1]} 4... cxd4 {[%clk 0:02:47.2]} 5. exd5 {[%clk 0:03:01.6]}
5... Nc6 {[%clk 0:02:47.9]} 6. dxc6 {[%clk 0:03:01.1]} 6... bxc6 {[%clk
0:02:45.5]} 7. Nb3 {[%clk 0:02:57.9]} 7... c5 {[%clk 0:02:43.7]} 8. c3 {[%clk
0:02:55.7]} 8... dxc3 {[%clk 0:02:42]} 9. Bb5+ {[%clk 0:02:52.2]} 9... Bd7
{[%clk 0:02:39.2]} 10. Bxd7+ {[%clk 0:02:51.6]} 10... Qxd7 {[%clk 0:02:39.8]}
11. Qxd7+ {[%clk 0:02:51.8]} 11... Kxd7 {[%clk 0:02:40.7]} 12. Ne5+ {[%clk
0:02:50.2]} 12... Ke8 {[%clk 0:02:39.8]} 13. bxc3 {[%clk 0:02:50.1]} 13... f6
{[%clk 0:02:40.4]} 14. Nc4 {[%clk 0:02:50.1]} 14... Ne7 {[%clk 0:02:32.9]} 15.
Nxc5 {[%clk 0:02:38.1]} 15... Nd5 {[%clk 0:02:28.3]} 16. Nxe6 {[%clk 0:02:36.1]}
16... Rc8 {[%clk 0:02:27]} 17. Ne3 {[%clk 0:02:31.9]} 17... Nxc3 {[%clk
0:02:25.6]} 18. Nxf8 {[%clk 0:02:30.6]} 18... Rxf8 {[%clk 0:02:23.4]} 19. Bd2
{[%clk 0:02:29.2]} 19... Ne4 {[%clk 0:02:21.8]} 20. f3 {[%clk 0:02:27.8]} 20...
Nc5 {[%clk 0:02:20.7]} 21. Ke2 {[%clk 0:02:26.6]} 21... Kf7 {[%clk 0:02:20.3]}
22. Rhc1 {[%clk 0:02:24.6]} 22... Rfe8 {[%clk 0:02:18.3]} 23. Rab1 {[%clk
0:02:22.3]} 23... Kg6 {[%clk 0:02:15.5]} 24. Rb5 {[%clk 0:02:16.3]} 24... Ne6
{[%clk 0:02:13.1]} 25. Rxc8 {[%clk 0:02:14.9]} 25... Rxc8 {[%clk 0:02:14]} 26.
Ra5 {[%clk 0:02:13.6]} 26... Rc7 {[%clk 0:02:08.7]} 27. Nd5 {[%clk 0:02:12.8]}
27... Rc4 {[%clk 0:02:06.8]} 28. Rxa7 {[%clk 0:02:10.2]} 1-0

[Event "*** Titled Tuesday Blitz"]
[Site "Chess.com"]
[Date "2020.11.24"]
[Round "7"]
[White "RobertoJBM"]
[Black "szachuspl"]
[Result "1-0"]
[WhiteElo "2688"]
[BlackElo "2499"]
[TimeControl "180+1"]
[EndTime "11:30:50 PST"]
[Termination "RobertoJBM won by resignation"]

1. d4 {[%clk 0:03:00]} 1... Nf6 {[%clk 0:02:58.6]} 2. e3 {[%clk 0:03:00.9]} 2...
g6 {[%clk 0:02:55.4]} 3. Nf3 {[%clk 0:03:01.8]} 3... Bg7 {[%clk 0:02:55.6]} 4.
Be2 {[%clk 0:03:02.7]} 4... O-O {[%clk 0:02:55.9]} 5. O-O {[%clk 0:03:03.6]}
5... d6 {[%clk 0:02:56.5]} 6. c4 {[%clk 0:03:04.5]} 6... c5 {[%clk 0:02:56.2]}
7. Nc3 {[%clk 0:03:05.4]} 7... Nc6 {[%clk 0:02:56.4]} 8. d5 {[%clk 0:03:05.4]}
8... Na5 {[%clk 0:02:56.4]} 9. e4 {[%clk 0:03:04.3]} 9... Bg4 {[%clk 0:02:52.9]}
10. Nd2 {[%clk 0:03:03.9]} 10... Bxe2 {[%clk 0:02:52.5]} 11. Qxe2 {[%clk
0:03:04.8]} 11... Nd7 {[%clk 0:02:52.9]} 12. Nd1 {[%clk 0:02:56.4]} 12... a6
{[%clk 0:02:52.4]} 13. Rb1 {[%clk 0:02:55.2]} 13... Rb8 {[%clk 0:02:51.4]} 14.
b3 {[%clk 0:02:55.4]} 14... b5 {[%clk 0:02:51.5]} 15. Bb2 {[%clk 0:02:56]} 15...
e6 {[%clk 0:02:43.8]} 16. Bxg7 {[%clk 0:02:56.1]} 16... Kxg7 {[%clk 0:02:44.1]}
17. dxe6 {[%clk 0:02:55.9]} 17... fxe6 {[%clk 0:02:43.7]} 18. Ne3 {[%clk
0:02:56]} 18... Nc6 {[%clk 0:02:42.8]} 19. f4 {[%clk 0:02:51.6]} 19... Nd4
{[%clk 0:02:42.6]} 20. Qd3 {[%clk 0:02:51.4]} 20... bxc4 {[%clk 0:02:35.4]} 21.
Ndxc4 {[%clk 0:02:50.3]} 21... Nb6 {[%clk 0:02:26.2]} 22. Rbd1 {[%clk
0:02:46.4]} 22... Nxc4 {[%clk 0:02:24.8]} 23. Nxc4 {[%clk 0:02:46]} 23... d5
{[%clk 0:02:22.3]} 24. Ne5 {[%clk 0:02:41.7]} 24... Qc7 {[%clk 0:02:00.1]} 25.
Kh1 {[%clk 0:02:34.5]} 25... a5 {[%clk 0:01:51.8]} 26. Rc1 {[%clk 0:02:31.9]}
26... g5 {[%clk 0:01:42.9]} 27. Qxd4 {[%clk 0:02:27.5]} 1-0

[Event "*** Titled Tuesday Blitz"]
[Site "Chess.com"]
[Date "2020.11.24"]
[Round "7"]
[White "CheckThis4"]
[Black "Rud_Makarian"]
[Result "1/2-1/2"]
[WhiteElo "2562"]
[BlackElo "2732"]
[TimeControl "180+1"]
[EndTime "11:31:20 PST"]
[Termination "Game drawn by repetition"]

1. d4 {[%clk 0:03:00.9]} 1... Nf6 {[%clk 0:02:59.9]} 2. Bg5 {[%clk 0:02:59.4]}
2... Ne4 {[%clk 0:02:38.2]} 3. Bf4 {[%clk 0:02:59.2]} 3... d6 {[%clk 0:02:38.4]}
4. Nd2 {[%clk 0:02:56.4]} 4... Nxd2 {[%clk 0:02:34.7]} 5. Qxd2 {[%clk
0:02:57.3]} 5... Nd7 {[%clk 0:02:30.8]} 6. Nf3 {[%clk 0:02:53.9]} 6... g6 {[%clk
0:02:29.1]} 7. e4 {[%clk 0:02:47.9]} 7... Bg7 {[%clk 0:02:22.4]} 8. Bc4 {[%clk
0:02:35.9]} 8... O-O {[%clk 0:02:17.6]} 9. Bh6 {[%clk 0:02:32.9]} 9... c5 {[%clk
0:02:16.2]} 10. h4 {[%clk 0:02:19.7]} 10... cxd4 {[%clk 0:02:14]} 11. Bxg7
{[%clk 0:02:19.3]} 11... Kxg7 {[%clk 0:02:13.9]} 12. h5 {[%clk 0:02:17.4]} 12...
Ne5 {[%clk 0:02:12.2]} 13. hxg6 {[%clk 0:01:57.8]} 13... hxg6 {[%clk 0:02:01.1]}
14. Qh6+ {[%clk 0:01:50.6]} 14... Kf6 {[%clk 0:01:58.3]} 15. Qg5+ {[%clk
0:01:32.9]} 15... Kg7 {[%clk 0:01:58.4]} 16. Nxe5 {[%clk 0:01:32.7]} 16... dxe5
{[%clk 0:01:58.7]} 17. Qh6+ {[%clk 0:01:23.2]} 17... Kf6 {[%clk 0:01:58.4]} 18.
Qh4+ {[%clk 0:01:18.3]} 18... Kg7 {[%clk 0:01:57.7]} 19. Qh6+ {[%clk 0:01:15.2]}
19... Kf6 {[%clk 0:01:58.1]} 20. Qh4+ {[%clk 0:01:14.1]} 20... Kg7 {[%clk
0:01:57.9]} 21. Qh6+ {[%clk 0:01:13]} 1/2-1/2

[Event "*** Titled Tuesday Blitz"]
[Site "Chess.com"]
[Date "2020.11.24"]
[Round "7"]
[White "salomez"]
[Black "reniite"]
[Result "0-1"]
[WhiteElo "2143"]
[BlackElo "1962"]
[TimeControl "180+1"]
[EndTime "11:31:35 PST"]
[Termination "reniite won by resignation"]

1. e4 {[%clk 0:02:59.8]} 1... e5 {[%clk 0:03:00.1]} 2. Nf3 {[%clk 0:02:56.5]}
2... Nc6 {[%clk 0:03:00.3]} 3. Bc4 {[%clk 0:02:54]} 3... Nf6 {[%clk 0:03:00.1]}
4. d4 {[%clk 0:02:52.3]} 4... Nxe4 {[%clk 0:02:59.2]} 5. O-O {[%clk 0:02:43.3]}
5... d5 {[%clk 0:02:57.8]} 6. Bb5 {[%clk 0:02:40.2]} 6... exd4 {[%clk
0:02:56.5]} 7. Nxd4 {[%clk 0:02:39.6]} 7... Bd7 {[%clk 0:02:46.4]} 8. Re1 {[%clk
0:02:38.9]} 8... Be7 {[%clk 0:02:42.9]} 9. Bxc6 {[%clk 0:02:35.1]} 9... bxc6
{[%clk 0:02:42.1]} 10. f3 {[%clk 0:02:34.8]} 10... Nf6 {[%clk 0:02:38.6]} 11.
Bg5 {[%clk 0:02:33.8]} 11... O-O {[%clk 0:02:38.4]} 12. Nc3 {[%clk 0:02:27.9]}
12... h6 {[%clk 0:02:38.1]} 13. Bh4 {[%clk 0:02:26.9]} 13... Rb8 {[%clk
0:02:34.3]} 14. Nb3 {[%clk 0:02:20.5]} 14... Bf5 {[%clk 0:02:20.6]} 15. Na4
{[%clk 0:02:14.4]} 15... Rb4 {[%clk 0:02:12.1]} 16. Bxf6 {[%clk 0:02:04.5]}
16... Bxf6 {[%clk 0:02:11.8]} 17. Nac5 {[%clk 0:01:53.3]} 17... Bxb2 {[%clk
0:02:03.5]} 18. Rb1 {[%clk 0:01:52.7]} 18... Bc3 {[%clk 0:02:00.4]} 19. Re3
{[%clk 0:01:48.4]} 19... d4 {[%clk 0:01:49]} 20. Re5 {[%clk 0:01:47.8]} 20...
Qf6 {[%clk 0:01:37.5]} 21. Qe2 {[%clk 0:01:42.8]} 21... d3 {[%clk 0:01:32.3]}
0-1